Cogmind - Beta 16 @@@ ROGUE MODE // 2025.11.10 @ 12:15:32 Player: Lazz Result: Destroyed by G-67 Veteran with Field Laser Performance ------------- Evolutions (6) 3000 Regions Visited (8) 1600 Robots Destroyed (44) 220 Value Destroyed (1893) 1893 Prototype IDs (4) 80 Alien Tech Used (0) 0 Bonus (200) 200 TOTAL SCORE: 6993 Bonus ------- Entered Garrisons 200 Cogmind --------- Core Integrity 0/1150 Matter 227/300 Energy 100/100 System Corruption 5% Temperature Warm (124) Movement Core (350) Ox6 Location -4/Garrison Parts ------- > --- POWER (1) -------- (None) > --- PROPULSION (4) --- (None) > --- UTILITY (10) ----- Large Storage Unit Enhanced Optical Array Improved Signal Interpreter Improved Target Analyzer Core Analyzer > --- WEAPON (4) ------- (None) > --- INVENTORY (15) --- Improved Deuterium Engine Improved Deuterium Engine Medium Armored Exoskeleton Relay Coupler [Brawler] (31) Relay Coupler [Duelist] (30) Relay Coupler [Specialist] (26) Enhanced Nova Cannon Enhanced Nova Cannon Heavy Mass Driver Peak State ------------ > --- POWER ------------ Light Antimatter Reactor > --- PROPULSION ------- Flexi-carbon Leg Flexi-carbon Leg Flexi-carbon Leg Flexi-carbon Leg > --- UTILITY ---------- Improved Heat Sink Large Storage Unit Enhanced Optical Array Improved Signal Interpreter Terrain Scan Processor Improved Target Analyzer Core Analyzer Layered Heavy Armor Plating System Shield > --- WEAPON ----------- Enhanced Nova Cannon Gauss Rifle Kinetic Spear > --- INVENTORY -------- Improved Deuterium Engine Improved Deuterium Engine Improved Deuterium Engine Flexi-carbon Leg Medium Armored Exoskeleton Relay Coupler [Brawler] Relay Coupler [Duelist] Relay Coupler [Specialist] Enhanced Nova Cannon Heavy Mass Driver Micro-nuke Launcher [Rating: 92] Favorites ----------- Power Improved Deuterium Engine Engine Improved Deuterium Engine Reactor Light Antimatter Reactor Propulsion Light Treads Treads Light Treads Leg Aluminum Leg Utility Improved Heat Sink Device Improved Heat Sink Storage Large Storage Unit Processor Core Analyzer Hackware System Shield Protection Makeshift Light Armor Plating Weapon Enhanced Nova Cannon Energy Gun Thermic Laser Energy Cannon Enhanced Nova Cannon Ballistic Gun Improved KE Penetrator Ballistic Cannon Mass Driver Launcher Micro-nuke Launcher Piercing Weapon Kinetic Spear Build | -11 -10 -10 -8 -7 -6 -5 -4 -4 ------- Run | Yrd Mat Sub Mat Fac Fac Fac Fac Gar Slots Evolved 12 | . . . 4 2 2 2 2 . Power . | . . . . . . . . . Propulsion 2 | . . . 1 . . . 1 . Utility 8 | . . . 3 1 2 2 . . Weapon 2 | . . . . 1 . . 1 . Parts Attached 60 | 8 . 5 13 2 10 15 1 6 Power 5 | 1 . . 1 1 . . . 2 Engine 4 | 1 . . 1 1 . . . 1 Core . | . . . . . . . . . Reactor 1 | . . . . . . . . 1 Propulsion 16 | 2 . . 3 1 2 6 . 2 Treads 8 | . . . 3 1 2 2 . . Leg 8 | 2 . . . . . 4 . 2 Wheel . | . . . . . . . . . Hover . | . . . . . . . . . Flight . | . . . . . . . . . Utility 20 | 2 . 2 6 . 5 4 . 1 Device 8 | 1 . 1 2 . 2 2 . . Storage 3 | 1 . . 2 . . . . . Processor 5 | . . . 1 . 2 1 . 1 Hackware 1 | . . . . . 1 . . . Protection 3 | . . 1 1 . . 1 . . Artifact . | . . . . . . . . . Weapon 19 | 3 . 3 3 . 3 5 1 1 Energy Gun 7 | . . 2 2 . 3 . . . Energy Cannon 2 | . . . . . . 2 . . Ballistic Gun 7 | 3 . 1 1 . . 1 1 . Ballistic Cannon 1 | . . . . . . 1 . . Launcher 1 | . . . . . . . . 1 Special Weapon . | . . . . . . . . . Impact Weapon . | . . . . . . . . . Slashing Weapon . | . . . . . . . . . Piercing Weapon 1 | . . . . . . 1 . . Special Melee Weapon . | . . . . . . . . . Unidentified Prototypes 4 | . . . 2 . . 2 . . Parts Lost 30 | . . 3 6 . 3 2 . 16 Power 3 | . . . 1 . . . . 2 Propulsion 9 | . . 1 1 . 2 . . 5 Utility 8 | . . 1 . . 1 2 . 4 Weapon 10 | . . 1 4 . . . . 5 Highest Loss Streak 14 | . . 2 3 . 3 2 . 14 To Critical Strikes 1 | . . . . . . . . 1 Average Backups 9 | 2 4 6 5 11 12 13 9 10 Power 2 | . 1 1 1 2 4 3 3 2 Propulsion 2 | 1 2 2 . 1 2 5 4 3 Utility 1 | . . 2 2 5 3 1 . 1 Weapon 2 | . 1 . 1 3 2 3 2 3 Tool/Special . | . . . . . . . . . Unused Backups 11 | . . . 1 . 2 2 . 6 Power 5 | . . . . . 2 1 . 2 Propulsion . | . . . . . . . . . Utility 3 | . . . . . . . . 3 Weapon 3 | . . . 1 . . 1 . 1 Tool/Special . | . . . . . . . . . Average Slot Usage (%) 87 | . 100 90 92 59 80 88 89 82 Engine 7 | . 14 14 8 7 6 5 5 2 Treads 13 | . . . 26 21 19 5 15 9 Leg 5 | . 28 23 . . . 3 . 6 Device 13 | . 14 10 12 7 19 19 10 5 Storage 7 | . 14 14 9 7 6 5 5 5 Processor 9 | . . . . 7 8 21 21 23 Hackware 1 | . . . . . . 5 5 5 Protection 6 | . . 1 17 7 1 1 5 4 Energy Gun 8 | . . 10 9 . 17 7 . . Energy Cannon 1 | . . . . . . 5 5 4 Ballistic Gun 6 | . 28 14 8 . . 2 10 6 Peak Build Rating 92 | 9 9 13 31 25 53 89 86 92 Average Rating 42 | 6 9 9 24 21 41 75 84 80 On Entrance 32 | . 9 9 13 20 25 53 80 86 Avg Prop Armor Cover (%) . | . . . . . . . . . Naked Turns . | . . . . . . . . . Heaviest Build 84 | 14 14 21 42 35 49 84 84 84 Greatest Support 80 | 20 20 20 60 63 73 78 78 80 Greatest Overweight (x) 6 | 1 . 2 . . 1 1 1 6 Average Overweight (x) . | . . . . . . . 1 . Largest Inventory Capacity 15 | 8 8 8 15 15 15 15 15 15 Average Capacity 12 | 7 8 8 10 15 15 15 15 15 Most Carried 15 | 4 4 8 12 15 15 15 14 15 Average Carried 9 | 2 4 6 5 11 12 13 12 13 Final Capacity 15 | 8 8 8 15 15 15 15 15 15 Final Carried 15 | 4 4 8 11 15 15 12 14 12 Class Distribution -------------------- 42% | Gunner 29% | Mutant 23% | Derelict-Mutant 3% | Scavenger-Mutant Dominant Class ---------------- Mutant | -10/Materials Mutant | -10/Subcaves Derelict-Mutant | -8/Materials Mutant | -7/Factory Gunner | -6/Factory Gunner | -5/Factory Gunner | -4/Factory Scavenger-Mutant | -4/Garrison Resources | -11 -10 -10 -8 -7 -6 -5 -4 -4 ----------- Run | Yrd Mat Sub Mat Fac Fac Fac Fac Gar Matter Collected 1160 | 316 . 109 194 . 79 151 . 311 Remotely . | . . . . . . . . . Salvage Created 1792 | 64 55 119 494 . 131 346 . 583 Parts 107 | 4 6 13 25 . 7 16 . 36 Haulers Intercepted 1 | . . . 1 . . . . . Recyclers Shooed 1 | . . . . . . 1 . . Parts Field Recycled . | . . . . . . . . . Retrieved Matter . | . . . . . . . . . Parts Self-Destructed 13 | . . 13 . . . . . . Prevented . | . . . . . . . . . Parts Restored . | . . . . . . . . . Kills | -11 -10 -10 -8 -7 -6 -5 -4 -4 ------- Run | Yrd Mat Sub Mat Fac Fac Fac Fac Gar Combat Hostiles Destroyed 40 | . 3 5 9 . 2 7 . 14 Melee 4 | . . . . . . . . 4 Guns 23 | . 3 5 9 . 2 2 . 2 Cannons 9 | . . . . . . 5 . 4 AOE 4 | . . . . . . . . 4 Classes Destroyed 12 | 2 1 1 4 . 1 2 . 1 Worker 1 | . . . . . . 1 . . Tunneler 1 | 1 . . . . . . . . Hauler 1 | . . . 1 . . . . . Recycler 1 | 1 . . . . . . . . Swarmer 17 | . 3 4 . . . 4 . 6 Grunt 14 | . . . 7 . . 1 . 6 Duelist 1 | . . . 1 . . . . . Sentry 2 | . . . 1 . . 1 . . Hunter 2 | . . . . . 2 . . . Programmer 2 | . . . . . . . . 2 Behemoth 1 | . . . . . . 1 . . Subdweller 1 | . . 1 . . . . . . Best Kill Streak 6 | 1 3 4 4 . 2 6 . 6 Combat Bots Only 6 | . 3 4 3 . 2 5 . 6 Max Kills in Single Turn 4 | 1 2 4 1 . 1 1 . 3 Gunslinging 1 | . 1 1 . . . . . . Exploded 3 | . . . . . . . . 3 Melee 1 | . . . . . . . . 1 Uniques/NPCs Destroyed . | . . . . . . . . . Combat | -11 -10 -10 -8 -7 -6 -5 -4 -4 -------- Run | Yrd Mat Sub Mat Fac Fac Fac Fac Gar Hostile Shots Fired 472 | . 15 43 80 . 11 70 4 249 Missed 137 | . 8 16 21 . 2 21 2 67 Hits 335 | . 7 27 59 . 9 49 2 182 Melee 5 | . . . 5 . . . . . Projectile 330 | . 7 27 54 . 9 49 2 182 Critical Strikes 14 | . . . 2 . . 1 . 11 Damage Taken 6714 | . 53 582 1228 . 182 914 44 3711 Core 1604 | . 8 149 129 . 19 134 . 1165 Absorbed by Shields . | . . . . . . . . . Core Remaining (%) 82 | 100 . 37 76 100 97 86 . . Volleys Fired 119 | 9 5 23 40 . 6 18 . 18 Largest 4 | 2 2 2 2 . 3 3 . 4 Hottest 273 | 40 40 100 105 . 190 273 . 228 Shots Fired 261 | 18 10 46 66 . 16 50 . 55 Gun 197 | 18 10 46 66 . 16 18 . 23 Cannon 62 | . . . . . . 32 . 30 Launcher 2 | . . . . . . . . 2 Special . | . . . . . . . . . Kinetic 149 | 18 10 40 30 . . 15 . 36 Thermal 83 | . . . 31 . 4 31 . 17 Explosive 2 | . . . . . . . . 2 Electromagnetic 27 | . . 6 5 . 12 4 . . Robot Hit Streak 12 | 6 2 12 9 . 8 7 . 3 Robot Miss Streak 5 | 3 4 4 3 . 2 5 . 5 Penetration Max . | . . . . . . . . . Secondary Targets 6 | . 2 1 3 . . . . . Max Gunslinging Chain 1 | . 1 1 1 . . . . . Shots Hit Robots 160 | 11 4 31 51 . 7 24 . 32 Core Hits 76 | 4 3 8 20 . 6 13 . 22 Critical Kills . | . . . . . . . . . Critical Parts Destroyed 2 | . . . 1 . . 1 . . Critical Strikes 10 | . . . 5 . . 1 . 4 Burn 4 | . . . 4 . . . . . Destroy 2 | . . . 1 . . 1 . . Blast 1 | . . . . . . . . 1 Impale 3 | . . . . . . . . 3 Melee Attacks 12 | . . . . . . . . 12 Impact . | . . . . . . . . . Slashing . | . . . . . . . . . Piercing 12 | . . . . . . . . 12 Sneak Attacks . | . . . . . . . . . Combat Hostiles . | . . . . . . . . . Follow-up Attacks . | . . . . . . . . . Damage Inflicted 4147 | 122 43 157 961 . 121 921 . 1822 Guns 1944 | 122 43 157 961 . 121 306 . 234 Cannons 1083 | . . . . . . 611 . 472 Explosions 670 | . . . . . . . . 670 Melee 446 | . . . . . . . . 446 Ramming 4 | . . . . . . 4 . . Kinetic 1344 | 122 43 115 392 . . 234 . 438 Thermal 1431 | . . . 508 . 36 619 . 268 Explosive 670 | . . . . . . . . 670 Electromagnetic 252 | . . 42 61 . 85 64 . . Impact . | . . . . . . . . . Slashing . | . . . . . . . . . Piercing 446 | . . . . . . . . 446 Highest Corruption 5 | . . . . 1 . . . 5 Average Corruption 4 | . . . . 1 . . . 4 Corruption Purged 1 | . . . . . . . . 1 Corruption Blocked . | . . . . . . . . . Effects 8 | . . . . . . . . 8 Message Errors 2 | . . . . . . . . 2 Matter Fused 1 | . . . . . . . . 1 Heat Flow Errors 1 | . . . . . . . . 1 Energy Discharges 1 | . . . . . . . . 1 Data Loss (minor) 1 | . . . . . . . . 1 Misfires 1 | . . . . . . . . 1 Alerts 1 | . . . . . . . . 1 Overload Shots . | . . . . . . . . . Overflow Damage 111 | . . . . . . . . 111 Projectiles 16 | . . . . . . . . 16 Explosions 93 | . . . . . . . . 93 Melee 2 | . . . . . . . . 2 Knockbacks 1 | . . . . . . . . 1 Impact . | . . . . . . . . . Kinetic 1 | . . . . . . . . 1 Secondary . | . . . . . . . . . Self-Inflicted Damage 88 | . . . . . . . . 88 Shots 2 | . . . . . . . . 2 Rammed 1 | . . . . . 1 . . . Targets Rammed 2 | . . . . . 1 1 . . Kicked 1 | . . . . . . 1 . . Crushed . | . . . . . . . . . Highest Temperature 584 | . . . 393 . 151 420 . 584 Average Temperature 155 | . . . 114 . 83 168 . 206 Received Heat Transfer 1216 | . . 108 414 . . 75 12 607 Effects 17 | . . . . . . 5 . 12 Shutdowns 3 | . . . . . . 2 . 1 Energy Bleed 1 | . . . . . . . . 1 Interference 9 | . . . . . . 3 . 6 Matter Decay 2 | . . . . . . . . 2 Damage (minor) 1 | . . . . . . . . 1 Damage (core) 1 | . . . . . . . . 1 Siege Activations . | . . . . . . . . . Martial Activations . | . . . . . . . . . Shielding Activations . | . . . . . . . . . Robots Disrupted . | . . . . . . . . . Combat Hostiles . | . . . . . . . . . Robots Corrupted . | . . . . . . . . . Combat Hostiles . | . . . . . . . . . Parts Fried . | . . . . . . . . . Impact Corruptions . | . . . . . . . . . Robots Melted . | . . . . . . . . . Combat Hostiles . | . . . . . . . . . Parts Melted 3 | . . . 2 . . . . 1 Heat Transferred 2198 | . . . 1295 . 100 581 . 222 Parts Sabotaged . | . . . . . . . . . Parts Stolen . | . . . . . . . . . Parts Stripped . | . . . . . . . . . Power Chain Reactions . | . . . . . . . . . Alert | -11 -10 -10 -8 -7 -6 -5 -4 -4 ------- Run | Yrd Mat Sub Mat Fac Fac Fac Fac Gar Maximum Alert Level 1 | . . . . . . . . 1 Low Security (%) 95 | 100 100 . 100 100 100 100 100 58 Level 1 4 | . . . . . . . . 41 Level 2 . | . . . . . . . . . Level 3 . | . . . . . . . . . Level 4 . | . . . . . . . . . Level 5 . | . . . . . . . . . High Security . | . . . . . . . . . Max Security . | . . . . . . . . . Peak Influence 397 | 5 70 . 100 7 30 116 49 397 Initial 49 | . . . . 7 . . 49 . Average 31 | 1 20 . 22 . 2 24 13 161 Influence Increases 1225 | 10 75 125 233 . 63 242 . 477 Destroy 0b10 Robot/C 780 | . 60 80 180 . 40 140 . 280 Destroy 0b10 Robot/NC 20 | 10 . . 5 . . 5 . . Destroy Leader 102 | . 10 . 32 . 10 30 . 20 Allied During Kill 1 | . . . . . 1 . . . Successful Hack 57 | . 5 . . . 12 26 . 14 Disable Machine 15 | . . . . . . 15 . . Anti-Garrison Action 50 | . . . . . . . . 50 Destroy Structure 125 | . . . 1 . . 26 . 98 Lose Combat Pursuer 75 | . . 45 15 . . . . 15 Influence Decreases 908 | 10 25 175 217 16 63 142 100 160 Entered New Map 85 | . . 25 . 9 . . 51 . Time Decay 552 | 10 25 130 157 7 52 122 49 . Lost Part 260 | . . 20 60 . . 20 . 160 Lost Ally 11 | . . . . . 11 . . . Squads Dispatched 7 | . . . 5 . 1 1 . . Investigation 2 | . . . 2 . . . . . Extermination 1 | . . . . . . 1 . . Reinforcement 4 | . . . 3 . 1 . . . Assault . | . . . . . . . . . Garrison . | . . . . . . . . . Intercept . | . . . . . . . . . Searches Triggered . | . . . . . . . . . Construction Impeded . | . . . . . . . . . Haulers Reinforced . | . . . . . . . . . Active Scanning Responses . | . . . . . . . . . Cargo Convoy Interrupts . | . . . . . . . . . Stealth | -11 -10 -10 -8 -7 -6 -5 -4 -4 --------- Run | Yrd Mat Sub Mat Fac Fac Fac Fac Gar Distress Signals 2 | . . . 1 . . 1 . . Communications Jammed . | . . . . . . . . . Distress Signals . | . . . . . . . . . Times Spotted 65 | . 3 8 14 . 4 10 3 23 Peak Tracking Total 12 | . 3 6 6 . 2 6 2 12 Tactical Retreats 3 | . . 1 1 . . . . 1 Traps | -11 -10 -10 -8 -7 -6 -5 -4 -4 ------- Run | Yrd Mat Sub Mat Fac Fac Fac Fac Gar Traps Triggered 7 | . . 4 . 1 . . . 2 Indirectly . | . . . . . . . . . Trap Hack Attempts . | . . . . . . . . . Triggered . | . . . . . . . . . Disarmed . | . . . . . . . . . Reprogrammed . | . . . . . . . . . Reused . | . . . . . . . . . Traps Extracted . | . . . . . . . . . Installed . | . . . . . . . . . Triggered . | . . . . . . . . . Machines | -11 -10 -10 -8 -7 -6 -5 -4 -4 ---------- Run | Yrd Mat Sub Mat Fac Fac Fac Fac Gar Machines Disabled 2 | . . . . . . 1 . 1 Max in Single Turn 1 | . . . . . . 1 . 1 Garrison Relay 1 | . . . . . . . . 1 Machines Repaired . | . . . . . . . . . Machines Dismantled . | . . . . . . . . . Machines Sabotaged . | . . . . . . . . . Overloaded Fab Kills . | . . . . . . . . . Hacking | -11 -10 -10 -8 -7 -6 -5 -4 -4 --------- Run | Yrd Mat Sub Mat Fac Fac Fac Fac Gar Machines Accessed 13 | . 1 . . 2 3 4 2 1 Terminals 5 | . 1 . . . 2 1 . 1 Fabricators 3 | . . . . 1 1 1 . . Repair Stations . | . . . . . . . . . Recycling Units 3 | . . . . 1 . 1 1 . Scanalyzers 1 | . . . . . . 1 . . Garrison Access 1 | . . . . . . . 1 . Total Hacks 25 | . 1 . . 3 5 9 5 2 Successful 12 | . 1 . . 3 2 4 1 1 Failed 13 | . . . . . 3 5 4 1 Catastrophic 2 | . . . . . 1 1 . . Database Lockouts . | . . . . . . . . . Manual 3 | . . . . . 2 1 . . Terminals 7 | . 1 . . . 3 1 . 2 Fabricators 6 | . . . . 2 2 2 . . Repair Stations . | . . . . . . . . . Recycling Units 5 | . . . . 1 . 1 3 . Scanalyzers 5 | . . . . . . 5 . . Garrison Access 2 | . . . . . . . 2 . Terminal Hacks 4 | . 1 . . . 2 . . 1 Open DSF 1 | . . . . . 1 . . . Unreport Threat 1 | . . . . . 1 . . . Zone Layout 1 | . 1 . . . . . . . Patrol Navigation 1 | . . . . . . . . 1 Fabricator Hacks 3 | . . . . 2 . 1 . . Network Status 1 | . . . . 1 . . . . Build 2 | . . . . 1 . 1 . . Repair Station Hacks . | . . . . . . . . . Recycling Unit Hacks 2 | . . . . 1 . 1 . . Recycle Component 1 | . . . . . . 1 . . Retrieve Components 1 | . . . . 1 . . . . Scanalyzer 2 | . . . . . . 2 . . Insert Component 2 | . . . . . . 2 . . Garrison Access Hacks 1 | . . . . . . . 1 . Unlock Access 1 | . . . . . . . 1 . Unauthorized Hacks . | . . . . . . . . . Terminals . | . . . . . . . . . Fabricators . | . . . . . . . . . Repair Stations . | . . . . . . . . . Recycling Units . | . . . . . . . . . Scanalyzers . | . . . . . . . . . Garrison Access . | . . . . . . . . . Data Cores Recovered . | . . . . . . . . . Used . | . . . . . . . . . Hacking Detections 8 | . . . . 2 2 2 1 1 Full Trace Events . | . . . . . . . . . Feedback Events . | . . . . . . . . . Feedback Blocked . | . . . . . . . . . Robot Schematics Acquired . | . . . . . . . . . Robots Built 2 | . . . . 2 . . . . Authchips . | . . . . . . . . . Time 81 | . . . . 81 . . . . Total Robot Build Rating 2 | . . . . 2 . . . . Part Schematics Acquired . | . . . . . . . . . Parts Built 2 | . . . . . . 2 . . Authchips . | . . . . . . . . . Time 69 | . . . . . . 69 . . Total Part Build Rating 18 | . . . . . . 18 . . Part Studies Acquired . | . . . . . . . . . Parts Repaired . | . . . . . . . . . Time . | . . . . . . . . . Parts Recycled 1 | . . . . . . 1 . . Recycled Matter . | . . . . . . . . . Retrieved Matter . | . . . . . . . . . Retrieved Components 3 | . . . . 3 . . . . Parts Scanalyzed 2 | . . . . . . 2 . . Part Schematics Acquired . | . . . . . . . . . Parts Damaged 2 | . . . . . . 2 . . Bothacking | -11 -10 -10 -8 -7 -6 -5 -4 -4 ------------ Run | Yrd Mat Sub Mat Fac Fac Fac Fac Gar Used RIF Installer . | . . . . . . . . . Robots Hacked . | . . . . . . . . . Non-combat . | . . . . . . . . . Combat . | . . . . . . . . . Robot Hacks Applied . | . . . . . . . . . Relay Couplers Released 3 | . . . . . . . . 3 Machine Destruction 3 | . . . . . . . . 3 Fabnet Peak Effective % . | . . . . . . . . . Robots Rewired 1 | . . . . . 1 . . . Allies Hacked . | . . . . . . . . . Hacks Repelled . | . . . . . . . . . Allies | -11 -10 -10 -8 -7 -6 -5 -4 -4 -------- Run | Yrd Mat Sub Mat Fac Fac Fac Fac Gar Total Allies 3 | . . . . 2 1 . . . Largest Group 2 | . . . . 2 1 . . . Highest-Rated Group 41 | . . . . 20 41 . . . Highest-Rated Ally 41 | . . . . 10 41 . . . Total Orders 1 | . . . . 1 . . . . ROAM 1 | . . . . 1 . . . . Ally Attacks 5 | . . . . . 5 . . . Total Damage 54 | . . . . . 54 . . . Kills . | . . . . . . . . . Allies Corrupted . | . . . . . . . . . Allies Melted . | . . . . . . . . . Intel | -11 -10 -10 -8 -7 -6 -5 -4 -4 ------- Run | Yrd Mat Sub Mat Fac Fac Fac Fac Gar Active Infowar (turns) 2978 | 46 138 349 791 . 537 779 213 125 Optics 2669 | . . 224 791 . 537 779 213 125 Terrain 309 | 46 138 125 . . . . . . Robot Analysis Total . | . . . . . . . . . Derelict Logs Recovered . | . . . . . . . . . Drone Launches . | . . . . . . . . . Drone Recoveries . | . . . . . . . . . Exploration | -11 -10 -10 -8 -7 -6 -5 -4 -4 ------------- Run | Yrd Mat Sub Mat Fac Fac Fac Fac Gar Turns Passed 3773 | 122 138 521 951 183 538 779 213 328 Spaces Moved 1540 | 55 27 260 356 60 256 310 89 127 Core 9 | 6 . . . . . . . 3 Treads 944 | . . . 356 60 256 121 89 62 Legs 587 | 49 27 260 . . . 189 . 62 Wheels . | . . . . . . . . . Hover . | . . . . . . . . . Flight . | . . . . . . . . . Fastest Speed 50 | 50 120 120 160 160 155 140 235 120 Average Speed 165 | 125 120 144 160 160 158 189 235 166 Slowest Speed 350 | 190 120 260 160 160 240 250 235 350 Overloaded Moves . | . . . . . . . . . Propulsion Burnouts . | . . . . . . . . . Robots Hopped . | . . . . . . . . . Potential Cave-ins . | . . . . . . . . . Cave-ins Triggered . | . . . . . . . . . Exploration Rate (%) 12 | 4 5 25 24 3 6 10 5 26 Regions Visited 8 Branch Regions 1 Pre-discovered Areas . | . . . . . . . . . Known Exits Taken 2 | . . . . . . 1 1 . Unknown Exits Taken 6 | 1 1 1 1 1 1 . . . Scrap Searched 8 | . . 8 . . . . . . Spaces Dug . | . . . . . . . . . Terrain Destroyed 71 | . . . . . . 18 . 53 Melee . | . . . . . . . . . Projectile 32 | . . . . . . 18 . 14 AOE 39 | . . . . . . . . 39 Terrain Rammed . | . . . . . . . . . Walls Destroyed . | . . . . . . . . . Machines Disabled . | . . . . . . . . . Actions | -11 -10 -10 -8 -7 -6 -5 -4 -4 --------- Run | Yrd Mat Sub Mat Fac Fac Fac Fac Gar Total 2512 | 88 123 358 671 148 376 467 92 189 Wait 681 | 14 92 61 246 81 82 99 . 6 Move 1533 | 54 26 259 355 59 255 309 89 127 Hop . | . . . . . . . . . Pick Up 52 | 3 . 5 13 5 10 8 2 6 Fast Attach 20 | 7 . 5 2 . 2 4 . . Attach 36 | . . . 8 1 8 9 1 9 Detach 4 | . . . . . . 3 . 1 Swap 10 | 1 . 1 3 1 . 3 . 1 Drop 28 | . . 4 4 1 2 13 . 4 Fire 119 | 9 5 23 40 . 6 18 . 18 Melee 12 | . . . . . . . . 12 Ram . | . . . . . . . . . Kick 1 | . . . . . . 1 . . Crush 1 | . . . . . 1 . . . Escape Stasis 5 | . . . . . . . . 5 Rewire 10 | . . . . . 10 . . . Trap . | . . . . . . . . . Miscellaneous . | . . . . . . . . . Route ------- -11/Scrapyard -10/Materials -10/Subcaves (discovered 2 exits: [*Mat] / [*Rec]) -8/Materials -7/Factory -6/Factory -5/Factory -4/Factory -4/Garrison History --------- Turn | Location | Event 13 | -11/Scrapyard | Discovered new exit (range 15) 123 | -11/Scrapyard | Entered Materials 169 | -10/Materials | Discovered new exit (range 7) 261 | -10/Materials | Entered Subcaves 262 | -10/Subcaves | Approached by a straggling Scientist 314 | -10/Subcaves | Build established: Mutant 443 | -10/Subcaves | Core integrity fell below 50% 528 | -10/Subcaves | Discovered new exit (range 18) 727 | -10/Subcaves | Shifting Twisted Machinery released Mak. Thermal Plating 755 | -10/Subcaves | Discovered new exit (range 9) 782 | -10/Subcaves | Entered Materials 782 | -8/Materials | Evolved 4 slots: Propulsion x1, Utility x3 1093 | -8/Materials | Build established: Derelict-Mutant 1705 | -8/Materials | Discovered new exit (range 13) 1733 | -8/Materials | Entered Factory 1733 | -7/Factory | Evolved 2 slots: Utility x1, Weapon x1 1762 | -7/Factory | Lost 3 parts (1n2w) 1876 | -7/Factory | Fabricated T-07 Excavator (x2) 1912 | -7/Factory | Discovered new exit (range 3) 1916 | -7/Factory | Entered another Factory area 1916 | -6/Factory | Evolved 2 slots: Utility x2 2094 | -6/Factory | Lost 3 parts (2n1u) 2260 | -6/Factory | Build established: Gunner 2386 | -6/Factory | Discovered new exit (range 5) 2454 | -6/Factory | Entered another Factory area 2454 | -5/Factory | Evolved 2 slots: Utility x2 2718 | -5/Factory | Fabricated Enh. Nova Cannon? 3001 | -5/Factory | Spotted B-75 Beast 3025 | -5/Factory | Destroyed B-75 Beast 3095 | -5/Factory | Discovered new exit (range 22) 3210 | -5/Factory | Identified exit to Factory 3233 | -5/Factory | Entered another Factory area 3233 | -4/Factory | Evolved 2 slots: Propulsion x1, Weapon x1 3376 | -4/Factory | Spotted B-86 Titan 3446 | -4/Factory | Identified exit to Garrison 3446 | -4/Factory | Entered Garrison 3450 | -4/Garrison | Triggered checkpoint 3637 | -4/Garrison | Garrison Relay disabled 3700 | -4/Garrison | Triggered checkpoint 3756 | -4/Garrison | Core integrity fell below 50% 3769 | -4/Garrison | Core integrity fell below 20% 3774 | -4/Garrison | Destroyed by G-67 Veteran with Field Laser Last Messages --------------- 03758_ Flexi-carbon Leg destroyed. 03758_ Critical hit (Burn: +37). 03758_ Slug penetrates Wall. 03760_ Penetrated by Slug. 03762_ Critical hit (Burn: +50). 03763_ Flexi-carbon Leg destroyed. 03763_ Penetrated by Slug. 03763_ Critical hit (Destroy). 03763_ Kinetic Spear destroyed. 03763_ Imp. Deuterium Engine destroyed. 03764_ Slug penetrates Reinforced Barrier. 03765_ The unstable cave ceiling collapses. 03766_ Imp. Heat Sink destroyed. 03766_ Slug penetrates G-73 Enforcer. 03770_ Critical hit (Burn: +37). 03770_ Terrain Scan Processor destroyed. 03771_ Penetrated by Slug. 03772_ System corrupted: Heat flow error (+180). 03773_ System Shield destroyed. 03774_ The unstable cave ceiling collapses. Map ----- +----------------------------------------------------+ | ??????????????# #???????????????????????????????? | | ??????????????# #???????????????????????????????? | | #####?????????# #???????????????????????????????? | | #?????????# #???????????????????????????????? | | #??????##?# #???????????????????????????????? | | #??????#"## ###?????????????????????????????? | | ## #??????#" = #?????????????????????????????? | | ?# #??????#= = #?????????????????????????????? | | ?# #??????#" #?????????????????????????????? | | ?# ##?????#"## ###?????????????????????????????? | | ## "#?######?# ##????#######???????????????????? | | [###"#"*###[ "##### # ###?????????????????? | | ## [ ! [= *[ #?????????????????? | | ?# !* ! !* =* #?????????????????? | | ?######"####%"# ####### [ [ # #?????????????????? | | ??????## ###### #????# %g# # #?????????????????? | | ????????##????# #??#?# # # #?????????????????? | | ??????????????# #??# # # #?????????????????? | | ??????????????# #### # ##*#?????#???????????? | | ??????????????# # Y ##!###?? #???????????? | | ??????????????# ### ## gY #%[%!#? #???????????? | | ??????????????# #???## Y##*!![## ##??????????? | | ??????????????# ##### gg [ #??????????? | | ??????????????# %[ #??????????? | | ??????????????# != #??????????? | | ??????????????######## @ ## #??????????? | | ?????????????????????### ## #? #??????????? | | ?????????????????????? ?????????? | | ?????????????????????# #????????? | | ?????????????????????# #????????? | | ?????????????????????# #????????? | | ?????????????????????### ## ;# ###????????? | | ???????????????????????# ## ## #??????????? | | ???????????????????????# ? #??????????? | | ???????????????????????# #??????????? | | ???????????????????????# #??????????? | | ???????????????????????# ##""""## ?#??????????? | | ???????????????????????# #?????????????????????? | | ???????????????????????# ??????????????????????? | | ???????????????????????? ??????????????????????? | | ???????????????????????? ??????????????????????? | | ?????????????????????????????????????????????????? | | ?????????????????????????????????????????????????? | | ?????????????????????????????????????????????????? | | ?????????????????????????????????????????????????? | | ?????????????????????????????????????????????????? | | ?????????????????????????????????????????????????? | | ?????????????????????????????????????????????????? | | ?????????????????????????????????????????????????? | | ?????????????????????????????????????????????????? | +----------------------------------------------------+ Best States ------------- Heat Dissipation 57 Coolant Potential 50 Energy Generation 21 Energy Capacity 290 Matter Stores 300 Matter Capacity 300 Sight Range 22 Terrain Scan Range 16 Terrain Scan Density 85 Armor Coverage 600 Evasion (%) 55 Target Analysis 6 Core Analysis 6 Recoil Reduction 3 Defensive Hacking 10 Item Schematics ----------------- None Robot Schematics ------------------ None Fabricated ------------ T-07 Excavator | x2 | -7/Factory | Preloaded Enh. Nova Cannon | x2 | -5/Factory | Preloaded Repaired ---------- Nothing Studied --------- None Alien Tech Used ----------------- None Achievements -------------- None Challenges ------------ None Game ------ Seed PotentialArcPropulsion Manual? 0 Play Time 00:38:00 Cumulative 57.4 hours Start 2025.11.09 @ 16:37:37 End 2025.11.10 @ 12:15:32 Sessions 7 Manual Loads 0 Difficulty Rogue Special Mode None Game No. 76 Rogue 76 Adventurer 0 Explorer 0 Win Type - Total 1 Types 1/0/0/0/0/0/0/0/0/0 Lore% 34 Gallery% 41 Achievement% 30 Wizard Run 0 Options --------- Layout 2 ASCII 0 Keyboard 0 Movement Mouse Keybinds 0 Fullscreen 1 Font 16/SmallcapsGlow Map View 25x24 Zoom Use 82% Tactical HUD 1 Map Filters NONE Filters NONE Steam SD RUN: 2037acaf-8e28-40aa-88f9-d97ded026412